[Event "6. Internationales Spandauer Weihnachtsopen 2023"]
[Site "Spandau, Germany"]
[Date "2023.12.28"]
[Round "4.1"]
[White "Dahl, Christoph"]
[Black "Perestjuk, Marko"]
[Result "1-0"]
[TimeControl "90 min+30 sec"]
[WhiteElo "2357"]
[BlackElo "2171"]

1. e4 {[%clk 01:30:58]} {[%emt 00:00:06]} c5 {[%clk 01:30:48]} {[%emt
00:00:13]} 2. Nf3 {[%clk 01:31:08]} {[%emt 00:00:17]} d6 {[%clk 01:31:04]}
{[%emt 00:00:17]} 3. d4 {[%clk 01:31:06]} {[%emt 00:00:35]} cxd4 {[%clk
01:31:28]} 4. Nxd4 {[%clk 01:31:29]} {[%emt 00:00:10]} Nf6 {[%clk 01:31:49]}
{[%emt 00:00:05]} 5. Nc3 {[%clk 01:31:33]} {[%emt 00:00:26]} g6 {[%clk
01:31:50]} {[%emt 00:00:36]} 6. Be3 {[%clk 01:31:00]} {[%emt 00:00:58]} a6
{[%clk 01:31:36]} {[%emt 00:00:42]} 7. f3 {[%clk 01:29:18]} {[%emt 00:02:12]}
b5 {[%clk 01:31:33]} {[%emt 00:00:42]} 8. a4 {[%clk 01:25:13]} {[%emt
00:04:26]} b4 {[%clk 01:30:43]} {[%emt 00:01:23]} 9. Nd5 {[%clk 01:24:30]}
{[%emt 00:01:09]} Nxd5 {[%clk 01:30:06]} {[%emt 00:01:17]} 10. exd5 {[%clk
01:24:58]} Bg7 {[%clk 01:30:15]} {[%emt 00:00:13]} 11. Bc4 {[%clk 01:23:49]}
{[%emt 00:01:39]} Bb7 {[%clk 01:29:43]} {[%emt 00:01:10]} 12. Qd2 {[%clk
01:22:30]} {[%emt 00:01:41]} Nd7 {[%clk 01:28:14]} {[%emt 00:01:58]} 13. a5
{[%clk 01:18:27]} {[%emt 00:04:41]} Qc7 {[%clk 01:20:53]} {[%emt 00:07:49]} 14.
Qxb4 {[%clk 01:11:04]} {[%emt 00:07:47]} O-O {[%clk 01:16:49]} {[%emt
00:04:39]} 15. Rd1 {[%clk 00:43:23]} {[%emt 00:28:06]} Rab8 {[%clk 01:15:43]}
{[%emt 00:01:40]} 16. Qa4 {[%clk 00:43:21]} {[%emt 00:02:38]} Rfc8 {[%clk
01:11:04]} {[%emt 00:03:01]} 17. b3 {[%clk 00:38:09]} {[%emt 00:05:40]} Ne5
{[%clk 00:57:05]} {[%emt 00:18:07]} 18. Be2 {[%clk 00:35:46]} Qc3+ {[%clk
00:52:34]} {[%emt 00:04:24]} 19. Kf2 {[%clk 00:36:15]} Bxd5 {[%clk 00:40:03]}
{[%emt 00:12:59]} 20. Bxa6 {[%clk 00:34:56]} {[%emt 00:01:45]} Rc5 {[%clk
00:39:48]} {[%emt 00:00:44]} 21. Bb5 {[%clk 00:17:55]} {[%emt 00:21:50]} Nxf3
{[%clk 00:12:13]} {[%emt 00:23:46]} 22. Ne2 {[%clk 00:09:17]} {[%emt 00:09:08]}
Qxc2 {[%clk 00:10:07]} {[%emt 00:02:39]} 23. Bd3 {[%clk 00:09:29]} {[%emt
00:00:15]} Qb2 {[%clk 00:08:36]} {[%emt 00:02:00]} 24. Bxc5 {[%clk 00:07:27]}
{[%emt 00:02:40]} dxc5 {[%clk 00:07:03]} {[%emt 00:02:00]} 25. gxf3 {[%clk
00:07:42]} {[%emt 00:00:11]} Bd4+ {[%clk 00:05:11]} {[%emt 00:02:26]} 26. Kg2
{[%clk 00:05:40]} {[%emt 00:04:17]} Bxb3 {[%clk 00:03:28]} {[%emt 00:00:22]} 27.
Qa1 {[%clk 00:05:30]} {[%emt 00:02:23]} Bxd1 {[%clk 00:00:35]} {[%emt
00:01:43]} 28. Qxb2 {[%clk 00:05:54]} {[%emt 00:00:06]} Rxb2 {[%clk 00:00:50]}
{[%emt 00:00:15]} 29. Rxd1 {[%clk 00:06:19]} {[%emt 00:00:05]} Ra2 {[%clk
00:00:34]} {[%emt 00:00:45]} 30. a6 {[%clk 00:06:43]} {[%emt 00:00:05]} Be3
{[%clk 00:00:38]} {[%emt 00:00:34]} 31. Bc4 {[%clk 00:06:47]} {[%emt 00:00:24]}
Ra4 {[%clk 00:00:57]} {[%emt 00:00:06]} 32. Rd3 {[%clk 00:06:30]} {[%emt
00:00:59]} Rxc4 {[%clk 00:00:35]} {[%emt 00:00:40]} 33. Ra3 {[%clk 00:04:11]}
{[%emt 00:02:54]} Rc2 {[%clk 00:00:42]} {[%emt 00:00:18]} 34. a7 {[%clk
00:04:34]} {[%emt 00:00:07]} Rxe2+ {[%clk 00:01:05]} {[%emt 00:00:07]} 35. Kf1
{[%clk 00:04:54]} {[%emt 00:00:16]} Rf2+ {[%clk 00:00:48]} {[%emt 00:00:41]} 36.
Ke1 {[%clk 00:05:20]} {[%emt 00:00:04]} 1-0

[Event "6. Internationales Spandauer Weihnachtsopen 2023"]
[Site "Spandau, Germany"]
[Date "2023.12.28"]
[Round "4.2"]
[White "Solberg, Joachim"]
[Black "Tschernatsch, Johannes"]
[Result "1/2-1/2"]
[TimeControl "90 min+30 sec"]
[WhiteElo "2162"]
[BlackElo "2335"]

1. e4 {[%clk 01:30:58]} {[%emt 00:00:09]} c5 {[%clk 01:30:52]} {[%emt
00:00:09]} 2. c3 {[%clk 01:31:25]} {[%emt 00:00:10]} Nf6 {[%clk 01:31:15]} 3.
e5 {[%clk 01:31:51]} {[%emt 00:00:31]} Nd5 {[%clk 01:31:39]} 4. Nf3 {[%clk
01:32:17]} d6 {[%clk 01:29:33]} {[%emt 00:02:42]} 5. d4 {[%clk 01:32:41]} cxd4
{[%clk 01:29:34]} {[%emt 00:00:14]} 6. cxd4 {[%clk 01:33:07]} Nc6 {[%clk
01:29:23]} {[%emt 00:00:34]} 7. Bc4 {[%clk 01:33:33]} {[%emt 00:00:30]} Nb6
{[%clk 01:28:35]} {[%emt 00:00:52]} 8. Bb5 {[%clk 01:33:59]} {[%emt 00:00:27]}
Bd7 {[%clk 01:27:52]} {[%emt 00:00:52]} 9. exd6 {[%clk 01:28:10]} {[%emt
00:06:17]} e6 {[%clk 01:28:16]} {[%emt 00:00:37]} 10. Nc3 {[%clk 01:28:26]}
{[%emt 00:00:09]} Bxd6 {[%clk 01:27:18]} {[%emt 00:01:05]} 11. a3 {[%clk
01:28:27]} {[%emt 00:00:29]} Ne7 {[%clk 01:21:04]} {[%emt 00:06:49]} 12. Bd3
{[%clk 01:28:32]} {[%emt 00:00:27]} Ned5 {[%clk 01:19:42]} {[%emt 00:01:41]} 13.
Nxd5 {[%clk 01:28:13]} {[%emt 00:01:05]} Nxd5 {[%clk 01:19:42]} {[%emt
00:00:28]} 14. O-O {[%clk 01:28:38]} O-O {[%clk 01:19:35]} {[%emt 00:00:27]} 15.
Qe2 {[%clk 01:29:02]} {[%emt 00:00:40]} Bc6 {[%clk 01:06:51]} {[%emt 00:12:42]}
16. Be3 {[%clk 00:54:20]} {[%emt 00:35:12]} Nf4 {[%clk 01:00:44]} {[%emt
00:06:36]} 17. Bxf4 {[%clk 00:53:36]} {[%emt 00:01:36]} Bxf4 {[%clk 01:00:48]}
{[%emt 00:00:43]} 18. Be4 {[%clk 00:54:00]} Bd5 {[%clk 00:53:43]} {[%emt
00:07:02]} 19. Rfe1 {[%clk 00:53:57]} {[%emt 00:01:02]} Bc7 {[%clk 00:46:39]}
{[%emt 00:07:11]} 20. Rac1 {[%clk 00:54:17]} {[%emt 00:00:04]} Bb6 {[%clk
00:45:27]} {[%emt 00:01:45]} 21. Qc2 {[%clk 00:53:03]} {[%emt 00:01:40]} g6
{[%clk 00:44:25]} {[%emt 00:01:42]} 22. Bxd5 {[%clk 00:52:02]} {[%emt
00:01:23]} Qxd5 {[%clk 00:44:37]} {[%emt 00:00:16]} 23. Re5 {[%clk 00:51:06]}
{[%emt 00:01:27]} Qd7 {[%clk 00:44:06]} {[%emt 00:00:59]} 24. Qd2 {[%clk
00:50:35]} {[%emt 00:01:02]} Rfd8 {[%clk 00:43:07]} {[%emt 00:02:11]} 25. Rd1
{[%clk 00:49:43]} {[%emt 00:00:47]} Rac8 {[%clk 00:37:06]} {[%emt 00:06:26]} 26.
Qh6 {[%clk 00:40:48]} {[%emt 00:09:22]} Rc2 {[%clk 00:35:16]} {[%emt 00:02:28]}
27. b4 {[%clk 00:34:37]} {[%emt 00:07:06]} f6 {[%clk 00:32:16]} {[%emt
00:02:57]} 28. Re4 {[%clk 00:35:00]} {[%emt 00:00:12]} e5 {[%clk 00:30:25]}
{[%emt 00:02:59]} 29. Rde1 {[%clk 00:34:57]} Qg7 {[%clk 00:24:28]} {[%emt
00:06:17]} 30. Qh3 {[%clk 00:31:03]} {[%emt 00:04:25]} h5 {[%clk 00:20:55]}
{[%emt 00:04:14]} 31. Nxe5 {[%clk 00:30:47]} {[%emt 00:00:42]} fxe5 {[%clk
00:21:05]} {[%emt 00:00:14]} 32. Qb3+ {[%clk 00:31:13]} {[%emt 00:00:17]} Qf7
{[%clk 00:20:34]} {[%emt 00:01:11]} 33. Qxc2 {[%clk 00:31:36]} Bxd4 {[%clk
00:20:49]} 34. h4 {[%clk 00:29:15]} {[%emt 00:02:51]} Kh7 {[%clk 00:17:15]}
{[%emt 00:04:26]} 35. R1e2 {[%clk 00:26:58]} {[%emt 00:02:21]} Rd6 {[%clk
00:16:24]} {[%emt 00:01:20]} 36. Kh2 {[%clk 00:26:15]} {[%emt 00:01:14]} Rf6
{[%clk 00:15:06]} {[%emt 00:01:47]} 37. Kg1 {[%clk 00:23:01]} {[%emt 00:03:53]}
Rc6 {[%clk 00:13:14]} {[%emt 00:02:56]} 38. Qd2 {[%clk 00:19:41]} {[%emt
00:03:11]} Rd6 {[%clk 00:11:15]} {[%emt 00:02:29]} 39. Qa2 {[%clk 00:18:37]}
{[%emt 00:01:31]} Qf5 {[%clk 00:11:35]} {[%emt 00:00:53]} 40. Qc2 {[%clk
00:12:45]} {[%emt 00:05:44]} Rc6 {[%clk 00:11:45]} {[%emt 00:00:41]} 41. Qb1
{[%clk 00:11:59]} {[%emt 00:01:06]} Rc3 {[%clk 00:11:33]} {[%emt 00:00:31]} 42.
Qe1 {[%clk 00:11:43]} {[%emt 00:00:40]} Rc4 {[%clk 00:07:24]} {[%emt 00:05:04]}
43. Rxe5 {[%clk 00:05:52]} {[%emt 00:06:00]} Bxe5 {[%clk 00:07:47]} {[%emt
00:00:15]} 44. Rxe5 {[%clk 00:06:20]} Qf4 {[%clk 00:07:34]} {[%emt 00:00:36]}
45. g3 {[%clk 00:06:46]} {[%emt 00:00:09]} Qc1 {[%clk 00:07:40]} {[%emt
00:00:16]} 46. Re7+ {[%clk 00:07:03]} {[%emt 00:00:49]} Kh6 {[%clk 00:07:41]}
47. Qxc1+ {[%clk 00:07:23]} {[%emt 00:00:06]} Rxc1+ {[%clk 00:08:07]} {[%emt
00:00:10]} 48. Kg2 {[%clk 00:07:50]} {[%emt 00:00:08]} Ra1 {[%clk 00:08:17]}
{[%emt 00:00:05]} 49. Re3 {[%clk 00:08:15]} {[%emt 00:00:12]} Kg7 {[%clk
00:08:19]} {[%emt 00:00:25]} 50. Kf3 {[%clk 00:08:40]} {[%emt 00:00:03]} Ra2
{[%clk 00:08:29]} {[%emt 00:00:20]} 51. Rc3 {[%clk 00:08:36]} {[%emt 00:00:43]}
Kf6 {[%clk 00:08:46]} {[%emt 00:00:05]} 52. Ke3 {[%clk 00:09:02]} {[%emt
00:00:07]} g5 {[%clk 00:08:05]} {[%emt 00:01:06]} 53. hxg5+ {[%clk 00:09:02]}
{[%emt 00:00:30]} Kxg5 {[%clk 00:08:31]} {[%emt 00:00:10]} 54. f3 {[%clk
00:08:08]} {[%emt 00:01:29]} b6 {[%clk 00:08:52]} 55. Rd3 {[%clk 00:07:24]}
{[%emt 00:01:13]} Kf5 {[%clk 00:08:30]} {[%emt 00:01:01]} 56. Kd4 {[%clk
00:03:17]} {[%emt 00:04:26]} Rg2 {[%clk 00:08:46]} {[%emt 00:00:13]} 57. g4+
{[%clk 00:02:55]} {[%emt 00:00:52]} hxg4 {[%clk 00:09:05]} {[%emt 00:00:12]} 58.
fxg4+ {[%clk 00:03:23]} {[%emt 00:00:10]} Ke6 {[%clk 00:07:42]} {[%emt
00:01:44]} 59. Kc4 {[%clk 00:03:21]} {[%emt 00:00:42]} a6 {[%clk 00:07:42]}
{[%emt 00:00:22]} 60. Rd4 {[%clk 00:03:11]} {[%emt 00:00:46]} Rg3 {[%clk
00:07:06]} {[%emt 00:01:25]} 61. Rd3 {[%clk 00:00:56]} {[%emt 00:02:17]} Rxg4+
{[%clk 00:07:24]} {[%emt 00:00:18]} 62. Kb3 {[%clk 00:01:24]} Ke5 {[%clk
00:07:16]} {[%emt 00:00:35]} 63. a4 {[%clk 00:01:40]} {[%emt 00:00:15]} Rd4
{[%clk 00:07:12]} {[%emt 00:00:39]} 64. Rc3 {[%clk 00:02:08]} 1/2-1/2

[Event "6. Internationales Spandauer Weihnachtsopen 2023"]
[Site "Spandau, Germany"]
[Date "2023.12.28"]
[Round "4.3"]
[White "Dathe, Frederick"]
[Black "Nemitz, Alfred"]
[Result "1/2-1/2"]
[TimeControl "90 min+30 sec"]
[WhiteElo "2143"]
[BlackElo "2219"]

1. c4 {[%clk 01:30:42]} {[%emt 00:00:33]} Nf6 {[%clk 01:30:31]} {[%emt
00:00:12]} 2. Nf3 {[%clk 01:30:18]} {[%emt 00:00:54]} e6 {[%clk 01:30:56]}
{[%emt 00:00:07]} 3. b3 {[%clk 01:28:39]} {[%emt 00:02:13]} d5 {[%clk
01:31:23]} 4. Bb2 {[%clk 01:28:47]} {[%emt 00:00:25]} a5 {[%clk 01:31:49]} 5.
Nc3 {[%clk 01:26:46]} {[%emt 00:03:37]} c6 {[%clk 01:31:07]} {[%emt 00:00:07]}
6. e3 {[%clk 01:24:52]} {[%emt 00:02:29]} Nbd7 {[%clk 01:30:53]} {[%emt
00:00:36]} 7. d4 {[%clk 01:22:46]} {[%emt 00:02:41]} Bd6 {[%clk 01:30:22]}
{[%emt 00:01:01]} 8. Be2 {[%clk 01:19:52]} {[%emt 00:03:23]} O-O {[%clk
01:30:29]} {[%emt 00:00:29]} 9. O-O {[%clk 01:19:44]} {[%emt 00:00:28]} Qe7
{[%clk 01:28:53]} {[%emt 00:02:10]} 10. Qc2 {[%clk 01:11:34]} {[%emt 00:08:36]}
b6 {[%clk 01:24:23]} {[%emt 00:05:00]} 11. e4 {[%clk 01:02:00]} {[%emt
00:10:11]} dxe4 {[%clk 01:23:38]} {[%emt 00:01:24]} 12. Nxe4 {[%clk 01:01:18]}
{[%emt 00:00:59]} Nxe4 {[%clk 01:17:00]} {[%emt 00:07:05]} 13. Qxe4 {[%clk
01:00:19]} {[%emt 00:01:31]} Bb7 {[%clk 01:17:24]} {[%emt 00:00:05]} 14. Rad1
{[%clk 00:55:41]} {[%emt 00:05:07]} a4 {[%clk 01:15:51]} {[%emt 00:02:05]} 15.
Bd3 {[%clk 00:51:47]} {[%emt 00:04:22]} Nf6 {[%clk 01:13:40]} {[%emt 00:02:45]}
16. Qh4 {[%clk 00:50:32]} {[%emt 00:01:40]} h6 {[%clk 01:12:44]} {[%emt
00:01:27]} 17. Bb1 {[%clk 00:43:38]} {[%emt 00:07:24]} Rfd8 {[%clk 01:06:44]}
{[%emt 00:06:30]} 18. Ne5 {[%clk 00:39:21]} {[%emt 00:04:46]} Nd7 {[%clk
01:01:13]} {[%emt 00:06:09]} 19. Qh3 {[%clk 00:36:53]} {[%emt 00:02:55]} Nxe5
{[%clk 00:59:13]} {[%emt 00:02:25]} 20. dxe5 {[%clk 00:37:01]} {[%emt
00:00:27]} Ba3 {[%clk 00:59:21]} {[%emt 00:00:18]} 21. Bc3 {[%clk 00:34:13]}
{[%emt 00:03:23]} Rxd1 {[%clk 00:57:20]} {[%emt 00:02:31]} 22. Rxd1 {[%clk
00:34:29]} {[%emt 00:00:08]} Rd8 {[%clk 00:57:39]} {[%emt 00:00:11]} 1/2-1/2

[Event "6. Internationales Spandauer Weihnachtsopen 2023"]
[Site "Spandau, Germany"]
[Date "2023.12.28"]
[Round "4.4"]
[White "Matthes, Aaron"]
[Black "Daniel, Damian"]
[Result "0-1"]
[TimeControl "90 min+30 sec"]
[WhiteElo "2207"]
[BlackElo "2129"]

1. c4 {[%clk 01:30:58]} {[%emt 00:00:25]} e5 {[%clk 01:30:32]} {[%emt
00:00:13]} 2. g3 {[%clk 01:31:21]} {[%emt 00:00:18]} Nc6 {[%clk 01:30:25]}
{[%emt 00:00:30]} 3. Bg2 {[%clk 01:30:54]} {[%emt 00:01:05]} Nf6 {[%clk
01:29:21]} {[%emt 00:01:16]} 4. Nc3 {[%clk 01:31:16]} {[%emt 00:00:33]} Bc5
{[%clk 01:28:41]} {[%emt 00:00:46]} 5. Nf3 {[%clk 01:31:15]} {[%emt 00:00:28]}
d6 {[%clk 01:27:28]} {[%emt 00:01:54]} 6. O-O {[%clk 01:29:06]} {[%emt
00:02:57]} a6 {[%clk 01:26:27]} {[%emt 00:01:02]} 7. e3 {[%clk 01:29:28]}
{[%emt 00:00:09]} O-O {[%clk 01:25:48]} {[%emt 00:01:11]} 8. b3 {[%clk
01:27:24]} {[%emt 00:02:35]} Ba7 {[%clk 01:21:09]} {[%emt 00:05:25]} 9. h3
{[%clk 01:26:50]} {[%emt 00:00:55]} h6 {[%clk 01:19:40]} {[%emt 00:01:48]} 10.
d4 {[%clk 01:24:56]} {[%emt 00:02:28]} Bf5 {[%clk 01:12:31]} {[%emt 00:07:37]}
11. Ba3 {[%clk 01:18:32]} {[%emt 00:06:53]} Re8 {[%clk 01:08:27]} {[%emt
00:04:32]} 12. dxe5 {[%clk 01:18:51]} {[%emt 00:00:20]} dxe5 {[%clk 01:07:37]}
{[%emt 00:01:24]} 13. Qc1 {[%clk 01:13:44]} {[%emt 00:05:38]} e4 {[%clk
01:04:01]} {[%emt 00:03:52]} 14. Rd1 {[%clk 01:12:39]} {[%emt 00:01:42]} Qc8
{[%clk 01:02:35]} {[%emt 00:01:48]} 15. Nd2 {[%clk 01:12:42]} {[%emt 00:00:47]}
Bxh3 {[%clk 00:53:50]} {[%emt 00:09:23]} 16. Bh1 {[%clk 01:05:41]} {[%emt
00:07:04]} Bg4 {[%clk 00:39:07]} {[%emt 00:15:13]} 17. Re1 {[%clk 01:05:59]}
{[%emt 00:00:25]} Bf5 {[%clk 00:35:32]} {[%emt 00:03:51]} 18. Qc2 {[%clk
00:59:40]} {[%emt 00:06:52]} Qe6 {[%clk 00:34:35]} {[%emt 00:02:00]} 19. Rad1
{[%clk 00:57:43]} {[%emt 00:01:51]} Rad8 {[%clk 00:31:13]} {[%emt 00:03:52]} 20.
Bg2 {[%clk 00:52:49]} {[%emt 00:05:24]} Bg4 {[%clk 00:24:10]} {[%emt 00:07:39]}
21. Rc1 {[%clk 00:52:50]} {[%emt 00:00:22]} Rxd2 {[%clk 00:20:17]} {[%emt
00:04:28]} 22. Qxd2 {[%clk 00:53:03]} {[%emt 00:00:12]} Ne5 {[%clk 00:20:22]}
{[%emt 00:00:25]} 23. Qc2 {[%clk 00:38:54]} {[%emt 00:14:38]} Nf3+ {[%clk
00:18:52]} {[%emt 00:01:59]} 24. Kf1 {[%clk 00:39:18]} {[%emt 00:00:16]} Nh2+
{[%clk 00:19:16]} 25. Kg1 {[%clk 00:39:43]} {[%emt 00:00:07]} Nf3+ {[%clk
00:19:41]} {[%emt 00:00:09]} 26. Kf1 {[%clk 00:40:10]} {[%emt 00:00:04]} Bh3
{[%clk 00:11:16]} {[%emt 00:08:44]} 27. c5 {[%clk 00:30:20]} {[%emt 00:10:19]}
Qg4 {[%clk 00:10:25]} {[%emt 00:01:27]} 28. Ne2 {[%clk 00:26:31]} {[%emt
00:04:13]} Nh4 {[%clk 00:09:27]} {[%emt 00:01:28]} 0-1

[Event "6. Internationales Spandauer Weihnachtsopen 2023"]
[Site "Spandau, Germany"]
[Date "2023.12.28"]
[Round "4.5"]
[White "Goluch, Piotr"]
[Black "Yatskar, Martin"]
[Result "1-0"]
[TimeControl "90 min+30 sec"]
[WhiteElo "2312"]
[BlackElo "2004"]

1. d4 d5 2. c4 e6 3. Nf3 c5 4. cxd5 exd5 5. Nc3 Nf6 6. g3 Nc6 7. Bg2 Be7 8. O-O
O-O 9. dxc5 Bxc5 10. Na4 Be7 11. Be3 Bg4 12. Rc1 Qd7 13. Re1 Rfe8 14. Nc5 Bxc5
15. Bxc5 Rad8 16. Nd4 Ne5 17. Bxa7 Ra8 18. Bc5 Rxa2 19. Ba3 Bh3 20. Qb3 Qg4 21.
Nf3 Rxa3 22. bxa3 Nc4 23. Qxb7 h5 24. Bxh3 Qxh3 25. Qxf7+ Kh8 26. Qg6 Rf8 27.
Ng5 Qd7 28. Nf3 Qh3 29. e4 Ng4 30. exd5 Nd2 31. Qh7+ Kxh7 32. Ng5+ Kg6 33. Nxh3
Nf3+ 34. Kg2 Nxe1+ 35. Rxe1 Ra8 36. Nf4+ Kf7 37. d6 Nf6 38. Re7+ Kg8 39. Ne6
1-0

[Event "6. Internationales Spandauer Weihnachtsopen 2023"]
[Site "Spandau, Germany"]
[Date "2023.12.28"]
[Round "4.6"]
[White "Dzikowski, Michal"]
[Black "Lorenz, Sascha"]
[Result "1-0"]
[TimeControl "90 min+30 sec"]
[WhiteElo "2060"]
[BlackElo "2296"]

1. d4 {[%clk 01:30:57]} {[%emt 00:00:10]} d5 {[%clk 01:30:52]} {[%emt
00:00:04]} 2. c4 {[%clk 01:31:20]} {[%emt 00:00:05]} dxc4 {[%clk 01:31:15]}
{[%emt 00:00:07]} 3. e3 {[%clk 01:31:43]} {[%emt 00:00:06]} b5 {[%clk
01:31:33]} {[%emt 00:00:12]} 4. a4 {[%clk 01:31:59]} {[%emt 00:00:15]} b4
{[%clk 01:31:57]} {[%emt 00:00:05]} 5. Bxc4 {[%clk 01:32:23]} {[%emt 00:00:10]}
Bb7 {[%clk 01:32:02]} {[%emt 00:00:25]} 6. Nf3 {[%clk 01:31:48]} {[%emt
00:01:08]} e6 {[%clk 01:32:21]} {[%emt 00:00:25]} 7. O-O {[%clk 01:30:13]}
{[%emt 00:01:53]} Nf6 {[%clk 01:32:45]} 8. Qe2 {[%clk 01:27:58]} {[%emt
00:02:44]} Be7 {[%clk 01:32:41]} {[%emt 00:00:47]} 9. Nbd2 {[%clk 01:26:05]}
{[%emt 00:02:14]} O-O {[%clk 01:32:19]} {[%emt 00:00:48]} 10. Rd1 {[%clk
01:21:13]} {[%emt 00:05:23]} Nbd7 {[%clk 01:29:16]} {[%emt 00:03:36]} 11. b3
{[%clk 01:03:18]} {[%emt 00:18:21]} c5 {[%clk 01:23:53]} {[%emt 00:05:54]} 12.
Bb2 {[%clk 01:00:19]} {[%emt 00:03:34]} Qb8 {[%clk 01:20:59]} {[%emt 00:03:21]}
13. Rac1 {[%clk 00:58:01]} {[%emt 00:02:45]} cxd4 {[%clk 01:10:37]} {[%emt
00:10:52]} 14. Bxd4 {[%clk 00:54:24]} {[%emt 00:04:11]} e5 {[%clk 01:09:24]}
{[%emt 00:01:44]} 15. Bb2 {[%clk 00:54:25]} {[%emt 00:00:23]} Bd6 {[%clk
01:05:01]} {[%emt 00:04:53]} 16. Nf1 {[%clk 00:47:06]} {[%emt 00:07:50]} e4
{[%clk 00:53:27]} {[%emt 00:12:06]} 17. Nd4 {[%clk 00:46:06]} {[%emt 00:01:40]}
Ne5 {[%clk 00:51:48]} {[%emt 00:01:57]} 18. Nf5 {[%clk 00:34:39]} {[%emt
00:11:55]} Bc7 {[%clk 00:52:08]} {[%emt 00:00:16]} 19. Bxe5 {[%clk 00:33:04]}
{[%emt 00:02:01]} Bxe5 {[%clk 00:52:28]} {[%emt 00:00:18]} 20. Ne7+ {[%clk
00:33:14]} {[%emt 00:00:11]} Kh8 {[%clk 00:52:50]} {[%emt 00:00:07]} 21. Nd5
{[%clk 00:33:33]} {[%emt 00:00:17]} Ne8 {[%clk 00:48:15]} {[%emt 00:05:00]} 22.
Nxb4 {[%clk 00:28:22]} {[%emt 00:05:41]} Nd6 {[%clk 00:46:52]} {[%emt
00:01:56]} 23. Bb5 {[%clk 00:23:07]} {[%emt 00:05:46]} a5 {[%clk 00:45:24]}
{[%emt 00:01:53]} 24. Nc6 {[%clk 00:18:46]} {[%emt 00:04:57]} Qe8 {[%clk
00:45:46]} {[%emt 00:00:04]} 25. Qh5 {[%clk 00:16:39]} {[%emt 00:02:42]} Nxb5
{[%clk 00:44:21]} {[%emt 00:01:53]} 26. Nxe5 {[%clk 00:15:13]} {[%emt
00:01:51]} g6 {[%clk 00:43:59]} {[%emt 00:01:02]} 27. Qg5 {[%clk 00:14:24]}
{[%emt 00:01:08]} f6 {[%clk 00:44:22]} {[%emt 00:00:09]} 28. Nxg6+ {[%clk
00:14:51]} {[%emt 00:00:05]} 1-0